[Event "Late-Titled-Tuesday-Blitz-October-03-2023"]
[Site "Chess.com"]
[Date "2023.10.03"]
[Round "1"]
[White "chesskov1982"]
[Black "SergioMoralesG"]
[Result "1-0"]
[WhiteElo "2840"]
[BlackElo "2442"]
[TimeControl "180+1"]
[EndTime "14:07:13 PDT"]
[Termination "chesskov1982 won by checkmate"]

1. d4 {[%clk 0:02:56.2]} 1... d5 {[%clk 0:02:53]} 2. c4 {[%clk 0:02:53]} 2... c6
{[%clk 0:02:53]} 3. Nc3 {[%clk 0:02:52]} 3... Nf6 {[%clk 0:02:53.5]} 4. Nf3
{[%clk 0:02:52.6]} 4... e6 {[%clk 0:02:52.6]} 5. Bg5 {[%clk 0:02:53.3]} 5... h6
{[%clk 0:02:51.2]} 6. Bh4 {[%clk 0:02:43.4]} 6... dxc4 {[%clk 0:02:50.5]} 7. e4
{[%clk 0:02:43.3]} 7... g5 {[%clk 0:02:50.8]} 8. Bg3 {[%clk 0:02:39.5]} 8... b5
{[%clk 0:02:51.4]} 9. h4 {[%clk 0:02:09.5]} 9... g4 {[%clk 0:02:49.8]} 10. Ne5
{[%clk 0:02:05.1]} 10... Nbd7 {[%clk 0:02:40.4]} 11. Qc2 {[%clk 0:01:52.4]}
11... Nxe5 {[%clk 0:02:32]} 12. Bxe5 {[%clk 0:01:49.3]} 12... Rg8 {[%clk
0:02:31.2]} 13. Be2 {[%clk 0:01:43.1]} 13... Nd7 {[%clk 0:02:26.4]} 14. Bg3
{[%clk 0:01:38.9]} 14... Qb6 {[%clk 0:02:22]} 15. O-O-O {[%clk 0:01:24.6]} 15...
Bb7 {[%clk 0:02:16]} 16. h5 {[%clk 0:01:21.2]} 16... Be7 {[%clk 0:02:00.3]} 17.
Kb1 {[%clk 0:01:18.8]} 17... O-O-O {[%clk 0:01:58.6]} 18. a3 {[%clk 0:01:00.2]}
18... a6 {[%clk 0:01:40.8]} 19. Bf4 {[%clk 0:00:52]} 19... Bg5 {[%clk 0:01:36]}
20. Bg3 {[%clk 0:00:49.1]} 20... c5 {[%clk 0:01:30.2]} 21. d5 {[%clk 0:00:47.6]}
21... Nf6 {[%clk 0:01:28.1]} 22. f4 {[%clk 0:00:45.1]} 22... gxf3 {[%clk
0:01:18.8]} 23. Bxf3 {[%clk 0:00:39.3]} 23... Be3 {[%clk 0:01:12.4]} 24. Bh4
{[%clk 0:00:36.1]} 24... e5 {[%clk 0:00:49.3]} 25. Rde1 {[%clk 0:00:28.1]} 25...
Bd4 {[%clk 0:00:48.5]} 26. Nd1 {[%clk 0:00:25.1]} 26... a5 {[%clk 0:00:39.9]}
27. Ne3 {[%clk 0:00:25.1]} 27... Ba6 {[%clk 0:00:37.4]} 28. Nf5 {[%clk 0:00:25]}
28... Rge8 {[%clk 0:00:21.9]} 29. Rhf1 {[%clk 0:00:22.2]} 29... b4 {[%clk
0:00:19.9]} 30. Bxf6 {[%clk 0:00:18.1]} 30... Qxf6 {[%clk 0:00:14.8]} 31. Nxd4
{[%clk 0:00:17.8]} 31... cxd4 {[%clk 0:00:13.2]} 32. Bg4+ {[%clk 0:00:18]} 32...
Kb8 {[%clk 0:00:12.5]} 33. Rxf6 {[%clk 0:00:17.7]} 33... d3 {[%clk 0:00:09.6]}
34. Qa4 {[%clk 0:00:17.3]} 34... c3 {[%clk 0:00:08.8]} 35. Rxa6 {[%clk
0:00:13.7]} 35... d2 {[%clk 0:00:09]} 36. Qb5+ {[%clk 0:00:11.4]} 36... Kc7
{[%clk 0:00:09.3]} 37. Qc6+ {[%clk 0:00:09.6]} 37... Kb8 {[%clk 0:00:08.8]} 38.
Ra8# {[%clk 0:00:10.5]} 1-0

[Event "Late-Titled-Tuesday-Blitz-October-03-2023"]
[Site "Chess.com"]
[Date "2023.10.03"]
[Round "1"]
[White "Battever"]
[Black "dropstoneDP"]
[Result "0-1"]
[WhiteElo "2510"]
[BlackElo "3081"]
[TimeControl "180+1"]
[EndTime "14:07:14 PDT"]
[Termination "dropstoneDP won on time"]

1. Nf3 {[%clk 0:02:55.6]} 1... d5 {[%clk 0:02:59.1]} 2. d4 {[%clk 0:02:47]} 2...
Nf6 {[%clk 0:02:58.5]} 3. Bg5 {[%clk 0:02:47.6]} 3... c5 {[%clk 0:02:55.6]} 4.
e3 {[%clk 0:02:47.3]} 4... Nc6 {[%clk 0:02:54.5]} 5. Nbd2 {[%clk 0:02:47.2]}
5... cxd4 {[%clk 0:02:51.8]} 6. exd4 {[%clk 0:02:47.3]} 6... h6 {[%clk
0:02:52.4]} 7. Bh4 {[%clk 0:02:41]} 7... Bf5 {[%clk 0:02:50.6]} 8. c3 {[%clk
0:02:40.4]} 8... e6 {[%clk 0:02:50.6]} 9. Qb3 {[%clk 0:02:39.6]} 9... Qc8 {[%clk
0:02:46.5]} 10. Ne5 {[%clk 0:02:30]} 10... Bd6 {[%clk 0:02:44.6]} 11. Be2 {[%clk
0:02:13.9]} 11... Nxe5 {[%clk 0:02:40.2]} 12. dxe5 {[%clk 0:02:13.1]} 12... Bxe5
{[%clk 0:02:41.1]} 13. Qa4+ {[%clk 0:02:10.6]} 13... Kf8 {[%clk 0:02:14.8]} 14.
Qb4+ {[%clk 0:02:10.1]} 14... Kg8 {[%clk 0:02:13.4]} 15. Nf3 {[%clk 0:02:10.7]}
15... Bc7 {[%clk 0:02:12.4]} 16. O-O {[%clk 0:01:55]} 16... Ne4 {[%clk 0:02:08]}
17. Rfe1 {[%clk 0:01:48.5]} 17... Bd6 {[%clk 0:02:06.6]} 18. Qb3 {[%clk
0:01:45.2]} 18... g5 {[%clk 0:02:03.1]} 19. Bg3 {[%clk 0:01:44.9]} 19... Nxg3
{[%clk 0:02:02.4]} 20. hxg3 {[%clk 0:01:44.8]} 20... Be7 {[%clk 0:01:47.1]} 21.
c4 {[%clk 0:01:44.6]} 21... dxc4 {[%clk 0:01:47.2]} 22. Bxc4 {[%clk 0:01:45.5]}
22... Bf6 {[%clk 0:01:47.2]} 23. Rac1 {[%clk 0:01:42.1]} 23... Kg7 {[%clk
0:01:27.3]} 24. Bd3 {[%clk 0:01:20.8]} 24... Qd7 {[%clk 0:01:25.6]} 25. Bxf5
{[%clk 0:01:13.3]} 25... exf5 {[%clk 0:01:26.5]} 26. Red1 {[%clk 0:01:09.9]}
26... Qe6 {[%clk 0:01:07.8]} 27. Qxb7 {[%clk 0:01:03.9]} 27... Rhb8 {[%clk
0:01:00.6]} 28. Qd5 {[%clk 0:01:04.1]} 28... Qxd5 {[%clk 0:00:47.9]} 29. Rxd5
{[%clk 0:01:05]} 29... Rxb2 {[%clk 0:00:47.8]} 30. Rxf5 {[%clk 0:00:58.3]} 30...
Re8 {[%clk 0:00:29]} 31. Ra5 {[%clk 0:00:54.7]} 31... Ree2 {[%clk 0:00:23.4]}
32. Rxa7 {[%clk 0:00:36.2]} 32... Rxf2 {[%clk 0:00:23.2]} 33. Rcc7 {[%clk
0:00:21.2]} 33... Rxg2+ {[%clk 0:00:23.2]} 34. Kh1 {[%clk 0:00:21.8]} 34... Rgf2
{[%clk 0:00:23.9]} 35. Rxf7+ {[%clk 0:00:21.4]} 35... Kg6 {[%clk 0:00:24.4]} 36.
Ne5+ {[%clk 0:00:01.8]} 36... Bxe5 {[%clk 0:00:24.1]} 37. Rxf2 {[%clk 0:00:02]}
37... Rxf2 {[%clk 0:00:25]} 0-1

[Event "Late-Titled-Tuesday-Blitz-October-03-2023"]
[Site "Chess.com"]
[Date "2023.10.03"]
[Round "1"]
[White "adricalderon8"]
[Black "JohnWhite1952"]
[Result "0-1"]
[WhiteElo "2484"]
[BlackElo "2063"]
[TimeControl "180+1"]
[EndTime "14:07:14 PDT"]
[Termination "JohnWhite1952 won by resignation"]

1. e4 {[%clk 0:02:58.2]} 1... c5 {[%clk 0:02:59.8]} 2. Nf3 {[%clk 0:02:57.6]}
2... e6 {[%clk 0:02:59.3]} 3. d4 {[%clk 0:02:56.7]} 3... cxd4 {[%clk 0:02:58.9]}
4. Nxd4 {[%clk 0:02:57.6]} 4... Nc6 {[%clk 0:02:58.7]} 5. Nc3 {[%clk 0:02:56.6]}
5... d6 {[%clk 0:02:57.7]} 6. f4 {[%clk 0:02:49.2]} 6... Nf6 {[%clk 0:02:53.2]}
7. Be3 {[%clk 0:02:48]} 7... Be7 {[%clk 0:02:52.4]} 8. Qf3 {[%clk 0:02:42.9]}
8... Bd7 {[%clk 0:02:48.1]} 9. O-O-O {[%clk 0:02:41]} 9... O-O {[%clk
0:02:45.9]} 10. Nxc6 {[%clk 0:02:32.2]} 10... Bxc6 {[%clk 0:02:43.6]} 11. g4
{[%clk 0:02:32.1]} 11... a6 {[%clk 0:02:33.7]} 12. g5 {[%clk 0:02:30.8]} 12...
Nd7 {[%clk 0:02:32.2]} 13. h4 {[%clk 0:02:28.2]} 13... b5 {[%clk 0:02:25.4]} 14.
h5 {[%clk 0:02:18.9]} 14... b4 {[%clk 0:02:24.6]} 15. Ne2 {[%clk 0:02:18.7]}
15... Qa5 {[%clk 0:02:22.2]} 16. Kb1 {[%clk 0:02:11.7]} 16... f5 {[%clk
0:02:12.8]} 17. gxf6 {[%clk 0:01:54.1]} 17... Nxf6 {[%clk 0:02:11.3]} 18. Ng3
{[%clk 0:01:48.9]} 18... Rac8 {[%clk 0:01:56.9]} 19. Bd3 {[%clk 0:01:43.1]}
19... d5 {[%clk 0:01:50.3]} 20. h6 {[%clk 0:01:20.6]} 20... g6 {[%clk
0:01:38.5]} 21. Qe2 {[%clk 0:00:59.4]} 21... dxe4 {[%clk 0:01:33.2]} 22. Bc4
{[%clk 0:00:55]} 22... Bd5 {[%clk 0:01:22]} 23. Bb3 {[%clk 0:00:46.7]} 23... Qc7
{[%clk 0:00:58.6]} 24. Rhg1 {[%clk 0:00:40.5]} 24... a5 {[%clk 0:00:53]} 25. f5
{[%clk 0:00:38.9]} 25... Bxb3 {[%clk 0:00:45.4]} 26. axb3 {[%clk 0:00:38.4]}
26... Nd5 {[%clk 0:00:21.5]} 27. fxg6 {[%clk 0:00:27.8]} 27... hxg6 {[%clk
0:00:19.4]} 28. Nxe4 {[%clk 0:00:27.3]} 28... Nxe3 {[%clk 0:00:17.9]} 29. Qxe3
{[%clk 0:00:27.9]} 29... Qxc2+ {[%clk 0:00:18.2]} 30. Ka2 {[%clk 0:00:28.8]}
30... a4 {[%clk 0:00:16.3]} 31. Rxg6+ {[%clk 0:00:28.5]} 31... Kh7 {[%clk
0:00:14.8]} 32. Rg7+ {[%clk 0:00:28.4]} 32... Kh8 {[%clk 0:00:13.8]} 33. Rxe7
{[%clk 0:00:18.7]} 33... axb3+ {[%clk 0:00:14]} 34. Qxb3 {[%clk 0:00:16.8]}
34... Ra8+ {[%clk 0:00:14.4]} 0-1

[Event "Late-Titled-Tuesday-Blitz-October-03-2023"]
[Site "Chess.com"]
[Date "2023.10.03"]
[Round "1"]
[White "Bilan_Danila"]
[Black "Danishcrown"]
[Result "1-0"]
[WhiteElo "2536"]
[BlackElo "2136"]
[TimeControl "180+1"]
[EndTime "14:07:15 PDT"]
[Termination "Bilan_Danila won on time"]

1. d4 {[%clk 0:02:57.2]} 1... Nf6 {[%clk 0:02:57.5]} 2. Nf3 {[%clk 0:02:56.2]}
2... e6 {[%clk 0:02:56.8]} 3. g3 {[%clk 0:02:56.1]} 3... d5 {[%clk 0:02:53.3]}
4. Bg2 {[%clk 0:02:56.1]} 4... c5 {[%clk 0:02:52.7]} 5. O-O {[%clk 0:02:56.4]}
5... Nc6 {[%clk 0:02:49.4]} 6. c4 {[%clk 0:02:55.6]} 6... dxc4 {[%clk 0:02:47]}
7. Qa4 {[%clk 0:02:47]} 7... Bd7 {[%clk 0:02:29]} 8. Qxc4 {[%clk 0:02:37.9]}
8... b5 {[%clk 0:02:27.1]} 9. Qd3 {[%clk 0:02:31]} 9... c4 {[%clk 0:02:18.3]}
10. Qd1 {[%clk 0:02:29.5]} 10... Rc8 {[%clk 0:02:13.5]} 11. Nc3 {[%clk
0:02:10.6]} 11... a6 {[%clk 0:02:07.5]} 12. Ne5 {[%clk 0:02:05.3]} 12... Be7
{[%clk 0:01:10.9]} 13. e4 {[%clk 0:01:29.6]} 13... O-O {[%clk 0:00:53.4]} 14.
Be3 {[%clk 0:01:27.7]} 14... h6 {[%clk 0:00:28.5]} 15. a4 {[%clk 0:01:16.2]}
15... b4 {[%clk 0:00:21.8]} 16. Nb1 {[%clk 0:01:02.7]} 16... Nxe5 {[%clk
0:00:18.3]} 17. dxe5 {[%clk 0:01:03.6]} 17... Ne8 {[%clk 0:00:18.7]} 18. Nd2
{[%clk 0:00:58.9]} 18... c3 {[%clk 0:00:16.9]} 19. bxc3 {[%clk 0:00:54.8]} 19...
bxc3 {[%clk 0:00:17.8]} 20. Nf3 {[%clk 0:00:55.7]} 20... Bc6 {[%clk 0:00:17.2]}
21. Nd4 {[%clk 0:00:51]} 21... Bb7 {[%clk 0:00:15.6]} 22. Qb3 {[%clk 0:00:46.8]}
22... Ba8 {[%clk 0:00:14.7]} 23. Rac1 {[%clk 0:00:46]} 23... Bc5 {[%clk
0:00:11.6]} 24. Rxc3 {[%clk 0:00:30.7]} 24... Bxd4 {[%clk 0:00:11.2]} 25. Rxc8
{[%clk 0:00:31.4]} 25... Qxc8 {[%clk 0:00:12.1]} 26. Bxd4 {[%clk 0:00:32]} 26...
Nc7 {[%clk 0:00:08.4]} 27. Bc5 {[%clk 0:00:29]} 27... Rd8 {[%clk 0:00:08]} 28.
Bb6 {[%clk 0:00:21.9]} 28... Qb7 {[%clk 0:00:05.4]} 29. a5 {[%clk 0:00:18.5]}
29... Rd7 {[%clk 0:00:05.2]} 30. Rc1 {[%clk 0:00:16.8]} 30... Nb5 {[%clk
0:00:04.9]} 31. Qc4 {[%clk 0:00:15.2]} 31... Kh7 {[%clk 0:00:02.1]} 32. h4
{[%clk 0:00:15.3]} 1-0

[Event "Late-Titled-Tuesday-Blitz-October-03-2023"]
[Site "Chess.com"]
[Date "2023.10.03"]
[Round "1"]
[White "Aswathchess"]
[Black "HanSchut"]
[Result "1/2-1/2"]
[WhiteElo "2613"]
[BlackElo "2328"]
[TimeControl "180+1"]
[EndTime "14:07:17 PDT"]
[Termination "Game drawn by repetition"]

1. e4 {[%clk 0:02:55.8]} 1... c5 {[%clk 0:02:59.2]} 2. Nc3 {[%clk 0:02:51.4]}
2... Nc6 {[%clk 0:02:58.6]} 3. Bb5 {[%clk 0:02:50.2]} 3... Nd4 {[%clk
0:02:58.2]} 4. Nf3 {[%clk 0:02:49.8]} 4... Nxb5 {[%clk 0:02:57.5]} 5. Nxb5
{[%clk 0:02:50.7]} 5... a6 {[%clk 0:02:57.9]} 6. Nc3 {[%clk 0:02:50.9]} 6... d6
{[%clk 0:02:55.1]} 7. O-O {[%clk 0:02:50]} 7... Nf6 {[%clk 0:02:54.7]} 8. d4
{[%clk 0:02:50.4]} 8... cxd4 {[%clk 0:02:55]} 9. Qxd4 {[%clk 0:02:51]} 9... Bg4
{[%clk 0:02:40.8]} 10. Qe3 {[%clk 0:02:36.9]} 10... g6 {[%clk 0:02:24.7]} 11. e5
{[%clk 0:02:36.3]} 11... dxe5 {[%clk 0:02:12.9]} 12. Nxe5 {[%clk 0:02:37.2]}
12... Bg7 {[%clk 0:02:04]} 13. Nxg4 {[%clk 0:02:32.7]} 13... Nxg4 {[%clk
0:02:04.9]} 14. Qf3 {[%clk 0:02:33.3]} 14... Qc8 {[%clk 0:01:43]} 15. Nd5 {[%clk
0:02:29]} 15... Ne5 {[%clk 0:01:41.3]} 16. Qe2 {[%clk 0:02:23.9]} 16... Qc6
{[%clk 0:01:25.6]} 17. c4 {[%clk 0:01:57.2]} 17... e6 {[%clk 0:01:25.5]} 18. Bf4
{[%clk 0:01:53.8]} 18... exd5 {[%clk 0:01:13.4]} 19. Bxe5 {[%clk 0:01:51.9]}
19... O-O {[%clk 0:01:13.2]} 20. Bxg7 {[%clk 0:01:50.8]} 20... Kxg7 {[%clk
0:01:13.7]} 21. Qe5+ {[%clk 0:01:51]} 21... f6 {[%clk 0:01:06.8]} 22. Qxd5
{[%clk 0:01:49.1]} 22... Qxd5 {[%clk 0:01:06.2]} 23. cxd5 {[%clk 0:01:50]} 23...
Rfd8 {[%clk 0:01:06.2]} 24. Rfd1 {[%clk 0:01:49.3]} 24... Rd6 {[%clk 0:01:05.3]}
25. Rd2 {[%clk 0:01:49.7]} 25... Rad8 {[%clk 0:01:05.7]} 26. Rad1 {[%clk
0:01:50.3]} 26... f5 {[%clk 0:01:03]} 27. f4 {[%clk 0:01:49.6]} 27... Kf6 {[%clk
0:01:02.6]} 28. Kf2 {[%clk 0:01:49.6]} 28... Re8 {[%clk 0:00:57.2]} 29. g3
{[%clk 0:01:47.7]} 29... Re4 {[%clk 0:00:56.6]} 30. Rc1 {[%clk 0:01:46.2]} 30...
Rd7 {[%clk 0:00:55.7]} 31. Rc8 {[%clk 0:01:29.1]} 31... Ke7 {[%clk 0:00:41.4]}
32. d6+ {[%clk 0:01:21.1]} 32... Kf7 {[%clk 0:00:25.3]} 33. Kf3 {[%clk 0:01:05]}
33... Rb4 {[%clk 0:00:19.6]} 34. Rh8 {[%clk 0:00:23]} 34... Kg7 {[%clk
0:00:19.1]} 35. Re8 {[%clk 0:00:22.6]} 35... Kf7 {[%clk 0:00:18.8]} 36. Re5
{[%clk 0:00:20.1]} 36... Rb6 {[%clk 0:00:16.4]} 37. Red5 {[%clk 0:00:20.7]}
37... Ke6 {[%clk 0:00:14.4]} 38. Re5+ {[%clk 0:00:21.1]} 38... Kf7 {[%clk
0:00:14.1]} 39. Rc5 {[%clk 0:00:20.2]} 39... Ke6 {[%clk 0:00:11.3]} 40. Re5+
{[%clk 0:00:17.5]} 40... Kf7 {[%clk 0:00:10.7]} 1/2-1/2

[Event "Late-Titled-Tuesday-Blitz-October-03-2023"]
[Site "Chess.com"]
[Date "2023.10.03"]
[Round "1"]
[White "bazar-wokzal"]
[Black "valemava"]
[Result "1-0"]
[WhiteElo "2584"]
[BlackElo "2273"]
[TimeControl "180+1"]
[EndTime "14:07:19 PDT"]
[Termination "bazar-wokzal won by checkmate"]

1. e4 {[%clk 0:03:00.9]} 1... c5 {[%clk 0:02:57.4]} 2. c3 {[%clk 0:03:00]} 2...
Qa5 {[%clk 0:02:55.7]} 3. Nf3 {[%clk 0:02:59.5]} 3... Nc6 {[%clk 0:02:54.7]} 4.
Bc4 {[%clk 0:02:57.6]} 4... e6 {[%clk 0:02:54]} 5. O-O {[%clk 0:02:57.1]} 5...
b5 {[%clk 0:02:54]} 6. Bb3 {[%clk 0:02:53.1]} 6... c4 {[%clk 0:02:53.1]} 7. Bc2
{[%clk 0:02:53]} 7... Bb7 {[%clk 0:02:51.9]} 8. b3 {[%clk 0:02:51.1]} 8... cxb3
{[%clk 0:02:50.2]} 9. Bxb3 {[%clk 0:02:50.8]} 9... Nf6 {[%clk 0:02:48.4]} 10. e5
{[%clk 0:02:48.8]} 10... Ng8 {[%clk 0:02:42.3]} 11. d4 {[%clk 0:02:48.2]} 11...
Nce7 {[%clk 0:02:39]} 12. Ng5 {[%clk 0:02:40.9]} 12... Nh6 {[%clk 0:02:33.5]}
13. Ba3 {[%clk 0:02:01.4]} 13... Nef5 {[%clk 0:02:28.1]} 14. Bxf8 {[%clk
0:01:58.4]} 14... Kxf8 {[%clk 0:02:24.8]} 15. Qd3 {[%clk 0:01:52.3]} 15... a6
{[%clk 0:02:13.2]} 16. Nd2 {[%clk 0:01:51]} 16... Qc7 {[%clk 0:02:09.8]} 17.
Nde4 {[%clk 0:01:39.4]} 17... g6 {[%clk 0:01:47.5]} 18. h3 {[%clk 0:01:33]}
18... Kg7 {[%clk 0:01:46.2]} 19. g4 {[%clk 0:01:22.7]} 19... Ne7 {[%clk
0:01:45.2]} 20. Nd6 {[%clk 0:01:10.6]} 20... Bd5 {[%clk 0:01:41.2]} 21. f4
{[%clk 0:01:05.2]} 21... Nc8 {[%clk 0:01:37.6]} 22. Nde4 {[%clk 0:00:52.9]}
22... Bc4 {[%clk 0:01:21.4]} 23. Qf3 {[%clk 0:00:45.3]} 23... Nb6 {[%clk
0:01:19.8]} 24. Rfc1 {[%clk 0:00:32.9]} 24... Ng8 {[%clk 0:01:05.9]} 25. Nd6
{[%clk 0:00:31.8]} 25... Rf8 {[%clk 0:01:03]} 26. f5 {[%clk 0:00:30.3]} 26... f6
{[%clk 0:00:45]} 27. exf6+ {[%clk 0:00:25.8]} 27... Nxf6 {[%clk 0:00:45.9]} 28.
Nxc4 {[%clk 0:00:22.8]} 28... bxc4 {[%clk 0:00:44.1]} 29. Bc2 {[%clk 0:00:22.2]}
29... Qc6 {[%clk 0:00:42.9]} 30. Qxc6 {[%clk 0:00:19.3]} 30... dxc6 {[%clk
0:00:43.3]} 31. Nxe6+ {[%clk 0:00:19.8]} 31... Kf7 {[%clk 0:00:42.7]} 32. Nxf8
{[%clk 0:00:19.7]} 32... Rxf8 {[%clk 0:00:42.7]} 33. fxg6+ {[%clk 0:00:17.9]}
33... hxg6 {[%clk 0:00:42.4]} 34. Rf1 {[%clk 0:00:18.6]} 34... Kg7 {[%clk
0:00:41.9]} 35. g5 {[%clk 0:00:18.1]} 35... Nfd5 {[%clk 0:00:41.5]} 36. Rxf8
{[%clk 0:00:18.1]} 36... Kxf8 {[%clk 0:00:42]} 37. Rf1+ {[%clk 0:00:18.1]} 37...
Kg7 {[%clk 0:00:42]} 38. Rf3 {[%clk 0:00:17.8]} 38... Nc8 {[%clk 0:00:41.1]} 39.
h4 {[%clk 0:00:17.2]} 39... Nd6 {[%clk 0:00:41.1]} 40. Kf2 {[%clk 0:00:16.1]}
40... Ne7 {[%clk 0:00:40.6]} 41. Rf6 {[%clk 0:00:15]} 41... Nef5 {[%clk
0:00:40.5]} 42. Bxf5 {[%clk 0:00:14.5]} 42... Nxf5 {[%clk 0:00:40.3]} 43. h5
{[%clk 0:00:15]} 43... Ne7 {[%clk 0:00:34.7]} 44. h6+ {[%clk 0:00:15.1]} 44...
Kg8 {[%clk 0:00:34.6]} 45. h7+ {[%clk 0:00:15.4]} 45... Kg7 {[%clk 0:00:34.6]}
46. Rf7+ {[%clk 0:00:15.8]} 46... Kxf7 {[%clk 0:00:34.7]} 47. h8=Q {[%clk
0:00:15.9]} 47... Nf5 {[%clk 0:00:35.6]} 48. Qf6+ {[%clk 0:00:15.7]} 48... Ke8
{[%clk 0:00:35.3]} 49. Qxg6+ {[%clk 0:00:16.2]} 49... Kd7 {[%clk 0:00:35.9]} 50.
Qxf5+ {[%clk 0:00:16.8]} 50... Kd6 {[%clk 0:00:35.3]} 51. g6 {[%clk 0:00:17.2]}
51... Kc7 {[%clk 0:00:36.2]} 52. g7 {[%clk 0:00:17.6]} 52... Kb6 {[%clk
0:00:36.3]} 53. g8=Q {[%clk 0:00:17.5]} 53... a5 {[%clk 0:00:36.8]} 54. Qb8+
{[%clk 0:00:16.6]} 54... Ka6 {[%clk 0:00:36.8]} 55. Qfc8# {[%clk 0:00:17]} 1-0

[Event "Late-Titled-Tuesday-Blitz-October-03-2023"]
[Site "Chess.com"]
[Date "2023.10.03"]
[Round "1"]
[White "K_alena13"]
[Black "NMJeevanK"]
[Result "0-1"]
[WhiteElo "2140"]
[BlackElo "2538"]
[TimeControl "180+1"]
[EndTime "14:07:19 PDT"]
[Termination "NMJeevanK won on time"]

1. Nf3 {[%clk 0:02:58.2]} 1... b6 {[%clk 0:02:55.5]} 2. c4 {[%clk 0:02:57.5]}
2... Bb7 {[%clk 0:02:56]} 3. Nc3 {[%clk 0:02:57.8]} 3... Nf6 {[%clk 0:02:54.8]}
4. g3 {[%clk 0:02:55.2]} 4... g6 {[%clk 0:02:53.7]} 5. Bg2 {[%clk 0:02:55.8]}
5... Bg7 {[%clk 0:02:54.4]} 6. O-O {[%clk 0:02:55.6]} 6... O-O {[%clk
0:02:54.7]} 7. d4 {[%clk 0:02:53.3]} 7... Ne4 {[%clk 0:02:45.9]} 8. Bd2 {[%clk
0:02:39.3]} 8... Nxc3 {[%clk 0:02:30.8]} 9. Bxc3 {[%clk 0:02:38.2]} 9... d5
{[%clk 0:02:31.7]} 10. Ne5 {[%clk 0:02:15.6]} 10... e6 {[%clk 0:02:24.7]} 11.
Qc2 {[%clk 0:02:01.7]} 11... Nd7 {[%clk 0:02:21.2]} 12. Ng4 {[%clk 0:01:33.1]}
12... Rb8 {[%clk 0:02:11.1]} 13. b3 {[%clk 0:01:28.6]} 13... Qe7 {[%clk
0:01:58.3]} 14. Ne3 {[%clk 0:01:04.8]} 14... Nf6 {[%clk 0:01:44.9]} 15. Bb2
{[%clk 0:00:55.8]} 15... c5 {[%clk 0:01:42.3]} 16. cxd5 {[%clk 0:00:49.8]} 16...
exd5 {[%clk 0:01:37.4]} 17. dxc5 {[%clk 0:00:47.7]} 17... bxc5 {[%clk
0:01:38.3]} 18. Rac1 {[%clk 0:00:45.7]} 18... d4 {[%clk 0:01:30.4]} 19. Nc4
{[%clk 0:00:37.2]} 19... Bxg2 {[%clk 0:01:28.1]} 20. Kxg2 {[%clk 0:00:38.1]}
20... Rfe8 {[%clk 0:01:24.9]} 21. e3 {[%clk 0:00:28.1]} 21... Qb7+ {[%clk
0:01:08.7]} 22. Kg1 {[%clk 0:00:22.9]} 22... Qd5 {[%clk 0:01:03]} 23. exd4
{[%clk 0:00:19.8]} 23... cxd4 {[%clk 0:01:03.9]} 24. Qd3 {[%clk 0:00:18]} 24...
Ng4 {[%clk 0:01:02.5]} 25. Rfe1 {[%clk 0:00:14.9]} 25... Qh5 {[%clk 0:00:59.7]}
26. h4 {[%clk 0:00:14.3]} 26... Qd5 {[%clk 0:00:52.9]} 27. Rcd1 {[%clk
0:00:13.2]} 27... h5 {[%clk 0:00:51.6]} 28. Rxe8+ {[%clk 0:00:08.4]} 28... Rxe8
{[%clk 0:00:52.5]} 29. Bxd4 {[%clk 0:00:07.4]} 29... Bxd4 {[%clk 0:00:51.7]} 30.
Qxd4 {[%clk 0:00:08.3]} 30... Re1+ {[%clk 0:00:50.9]} 31. Rxe1 {[%clk
0:00:07.3]} 31... Qxd4 {[%clk 0:00:51.2]} 32. Re8+ {[%clk 0:00:05.1]} 32... Kg7
{[%clk 0:00:50.9]} 33. Ne3 {[%clk 0:00:05.5]} 33... Nxe3 {[%clk 0:00:48.5]} 34.
Rxe3 {[%clk 0:00:06.4]} 34... Qa1+ {[%clk 0:00:48.9]} 35. Kg2 {[%clk 0:00:06.1]}
35... Qxa2 {[%clk 0:00:49.8]} 36. Rd3 {[%clk 0:00:06]} 36... Qa6 {[%clk
0:00:49.6]} 37. Re3 {[%clk 0:00:06.2]} 37... Qc6+ {[%clk 0:00:49.7]} 38. Kh2
{[%clk 0:00:06.1]} 38... a5 {[%clk 0:00:50.6]} 39. Kh3 {[%clk 0:00:05.1]} 39...
Qd5 {[%clk 0:00:46.9]} 40. Kh2 {[%clk 0:00:04]} 40... Qd2 {[%clk 0:00:46.7]} 41.
Kg2 {[%clk 0:00:03.9]} 41... f6 {[%clk 0:00:44]} 42. Kg1 {[%clk 0:00:04.1]}
42... g5 {[%clk 0:00:44.4]} 43. hxg5 {[%clk 0:00:03.5]} 43... fxg5 {[%clk
0:00:45.3]} 44. Kg2 {[%clk 0:00:04]} 44... Kf6 {[%clk 0:00:43.7]} 45. Kg1 {[%clk
0:00:03.8]} 45... Kf5 {[%clk 0:00:43.8]} 46. Kg2 {[%clk 0:00:04.2]} 46... Qd5+
{[%clk 0:00:41.8]} 47. Kg1 {[%clk 0:00:02.5]} 47... Kg4 {[%clk 0:00:41.7]} 48.
Kh2 {[%clk 0:00:02.6]} 48... h4 {[%clk 0:00:39.8]} 49. Rc3 {[%clk 0:00:01.5]}
49... Qe5 {[%clk 0:00:35.3]} 0-1